[Event "Late-Titled-Tuesday-Blitz-January-16-2024"]
[Site "Chess.com"]
[Date "2024.01.16"]
[Round "9"]
[White "TigrVShlyape"]
[Black "Polish_fighter3000"]
[Result "1/2-1/2"]
[WhiteElo "2948"]
[BlackElo "3089"]
[TimeControl "180+1"]
[EndTime "15:47:35 PST"]
[Termination "Game drawn by repetition"]

1. e4 {[%clk 0:03:00.9]} 1... c5 {[%clk 0:02:57.9]} 2. Nf3 {[%clk 0:02:59.9]}
2... d6 {[%clk 0:02:58.4]} 3. d4 {[%clk 0:02:59.5]} 3... cxd4 {[%clk 0:02:59.3]}
4. Nxd4 {[%clk 0:02:59.8]} 4... Nf6 {[%clk 0:02:59.9]} 5. Nc3 {[%clk 0:03:00.2]}
5... a6 {[%clk 0:03:00.6]} 6. a4 {[%clk 0:03:00.6]} 6... e5 {[%clk 0:02:58.8]}
7. Nf3 {[%clk 0:02:59.3]} 7... Be7 {[%clk 0:02:58.2]} 8. Bc4 {[%clk 0:02:59.3]}
8... Be6 {[%clk 0:02:55.4]} 9. Bb3 {[%clk 0:02:58.1]} 9... Nbd7 {[%clk
0:02:53.3]} 10. Be3 {[%clk 0:02:46.7]} 10... h6 {[%clk 0:02:47.5]} 11. O-O
{[%clk 0:02:44.7]} 11... O-O {[%clk 0:02:47.4]} 12. Qe2 {[%clk 0:02:34]} 12...
Rc8 {[%clk 0:02:45.9]} 13. Rfd1 {[%clk 0:02:32.3]} 13... Rxc3 {[%clk 0:02:29.5]}
14. bxc3 {[%clk 0:02:30.7]} 14... Nxe4 {[%clk 0:02:29.9]} 15. Bxe6 {[%clk
0:02:20.6]} 15... Nxc3 {[%clk 0:02:26.5]} 16. Qc4 {[%clk 0:01:58.7]} 16... Nxd1
{[%clk 0:02:25.9]} 17. Rxd1 {[%clk 0:01:53.8]} 17... fxe6 {[%clk 0:02:25.8]} 18.
Qxe6+ {[%clk 0:01:53.9]} 18... Kh8 {[%clk 0:02:15.7]} 19. Rb1 {[%clk 0:01:51.1]}
19... b6 {[%clk 0:02:08.4]} 20. h3 {[%clk 0:01:40.4]} 20... Qe8 {[%clk
0:01:22.9]} 21. Bxb6 {[%clk 0:01:18.5]} 21... Rf6 {[%clk 0:01:21.4]} 22. Qd5
{[%clk 0:01:01.5]} 22... Nxb6 {[%clk 0:01:12.8]} 23. Rxb6 {[%clk 0:01:00.3]}
23... Qxa4 {[%clk 0:01:12.9]} 24. Rb7 {[%clk 0:00:49.8]} 24... Bf8 {[%clk
0:01:10.6]} 25. c4 {[%clk 0:00:41.6]} 25... Qc2 {[%clk 0:01:05]} 26. Nd2 {[%clk
0:00:20.6]} 26... Qd1+ {[%clk 0:00:44.4]} 27. Kh2 {[%clk 0:00:19.8]} 27... Rxf2
{[%clk 0:00:27.5]} 28. Rb8 {[%clk 0:00:19.9]} 28... a5 {[%clk 0:00:06]} 29. Qxd6
{[%clk 0:00:16.8]} 29... Qxd2 {[%clk 0:00:01.7]} 30. Rxf8+ {[%clk 0:00:15.3]}
30... Kh7 {[%clk 0:00:02]} 31. Qxd2 {[%clk 0:00:14.4]} 31... Rxd2 {[%clk
0:00:02.9]} 32. Ra8 {[%clk 0:00:14]} 32... Ra2 {[%clk 0:00:02.6]} 33. Re8 {[%clk
0:00:14.2]} 33... Re2 {[%clk 0:00:02.1]} 34. Ra8 {[%clk 0:00:14.2]} 34... Kg6
{[%clk 0:00:02.2]} 35. Rxa5 {[%clk 0:00:14.2]} 35... Kf5 {[%clk 0:00:02.8]} 36.
Ra8 {[%clk 0:00:12.4]} 36... Rc2 {[%clk 0:00:02.6]} 37. Rc8 {[%clk 0:00:12.5]}
37... h5 {[%clk 0:00:02.8]} 38. Kg3 {[%clk 0:00:12.1]} 38... g5 {[%clk
0:00:01.9]} 39. h4 {[%clk 0:00:11.4]} 39... Rc3+ {[%clk 0:00:02.2]} 40. Kf2
{[%clk 0:00:11.7]} 40... gxh4 {[%clk 0:00:02.7]} 41. c5 {[%clk 0:00:10.8]} 41...
Kf4 {[%clk 0:00:02.6]} 42. Rf8+ {[%clk 0:00:10.2]} 42... Ke4 {[%clk 0:00:02.6]}
43. Rc8 {[%clk 0:00:10.1]} 43... Rc2+ {[%clk 0:00:03]} 44. Kf1 {[%clk
0:00:09.7]} 44... Ke3 {[%clk 0:00:03.2]} 45. Kg1 {[%clk 0:00:10]} 45... e4
{[%clk 0:00:03.6]} 46. c6 {[%clk 0:00:10]} 46... Ke2 {[%clk 0:00:03]} 47. c7
{[%clk 0:00:10]} 47... e3 {[%clk 0:00:03.6]} 48. Kh2 {[%clk 0:00:09.4]} 48...
Rc1 {[%clk 0:00:03.9]} 49. g3 {[%clk 0:00:08.2]} 49... hxg3+ {[%clk 0:00:03.1]}
50. Kxg3 {[%clk 0:00:08.6]} 50... Rc4 {[%clk 0:00:03.5]} 51. Kh3 {[%clk
0:00:08.4]} 51... h4 {[%clk 0:00:03.6]} 52. Kg2 {[%clk 0:00:08.7]} 52... Rg4+
{[%clk 0:00:03.5]} 53. Kh3 {[%clk 0:00:08.9]} 53... Rg7 {[%clk 0:00:04.2]} 54.
Kxh4 {[%clk 0:00:07.9]} 54... Re7 {[%clk 0:00:04.7]} 55. Kg3 {[%clk 0:00:07.9]}
55... Ke1 {[%clk 0:00:04.8]} 56. Kg2 {[%clk 0:00:08.2]} 56... e2 {[%clk
0:00:05.1]} 57. Kg1 {[%clk 0:00:08.1]} 57... Rg7+ {[%clk 0:00:05.2]} 58. Kh2
{[%clk 0:00:08.4]} 58... Rf7 {[%clk 0:00:04.1]} 59. Kg2 {[%clk 0:00:08.6]} 59...
Re7 {[%clk 0:00:02.9]} 60. Kg1 {[%clk 0:00:09]} 60... Rh7 {[%clk 0:00:02.8]} 61.
Kg2 {[%clk 0:00:09.2]} 61... Rf7 {[%clk 0:00:03.3]} 62. Kg1 {[%clk 0:00:08.9]}
62... Rf1+ {[%clk 0:00:02.7]} 63. Kg2 {[%clk 0:00:09.2]} 63... Rf7 {[%clk
0:00:03.6]} 64. Kg1 {[%clk 0:00:09.4]} 64... Re7 {[%clk 0:00:03.5]} 65. Kg2
{[%clk 0:00:09.7]} 65... Rd7 {[%clk 0:00:03.7]} 66. Kg1 {[%clk 0:00:09.8]} 66...
Rg7+ {[%clk 0:00:03.7]} 67. Kh2 {[%clk 0:00:10]} 67... Rh7+ {[%clk 0:00:02.9]}
68. Kg2 {[%clk 0:00:09.8]} 68... Rd7 {[%clk 0:00:02.6]} 69. Kh2 {[%clk
0:00:09.6]} 69... Re7 {[%clk 0:00:02.1]} 70. Kg2 {[%clk 0:00:09.8]} 70... Rh7
{[%clk 0:00:01.9]} 71. Kg1 {[%clk 0:00:09.1]} 71... Rf7 {[%clk 0:00:01.8]} 72.
Kg2 {[%clk 0:00:09.2]} 72... Re7 {[%clk 0:00:02.1]} 1/2-1/2

[Event "Late-Titled-Tuesday-Blitz-January-16-2024"]
[Site "Chess.com"]
[Date "2024.01.16"]
[Round "9"]
[White "bescmelasti"]
[Black "Msb2"]
[Result "0-1"]
[WhiteElo "2696"]
[BlackElo "3022"]
[TimeControl "180+1"]
[EndTime "15:47:36 PST"]
[Termination "Msb2 won by resignation"]

1. e4 {[%clk 0:03:00.9]} 1... e6 {[%clk 0:02:59.6]} 2. d4 {[%clk 0:03:01.2]}
2... d5 {[%clk 0:03:00.1]} 3. Nc3 {[%clk 0:03:01.7]} 3... Nf6 {[%clk 0:02:59.3]}
4. e5 {[%clk 0:03:01.8]} 4... Nfd7 {[%clk 0:02:59.8]} 5. f4 {[%clk 0:03:02.7]}
5... c5 {[%clk 0:03:00.6]} 6. Nf3 {[%clk 0:03:03.6]} 6... Nc6 {[%clk 0:03:01.3]}
7. Be3 {[%clk 0:03:04.2]} 7... a6 {[%clk 0:03:02]} 8. Qd2 {[%clk 0:03:04.1]}
8... b5 {[%clk 0:03:02.5]} 9. a3 {[%clk 0:03:04.6]} 9... Qa5 {[%clk 0:03:02.3]}
10. dxc5 {[%clk 0:03:03.6]} 10... Bxc5 {[%clk 0:03:03.2]} 11. Bxc5 {[%clk
0:03:00.1]} 11... Nxc5 {[%clk 0:03:04.1]} 12. Nd4 {[%clk 0:03:01]} 12... Nxd4
{[%clk 0:03:03.7]} 13. Qxd4 {[%clk 0:03:01.9]} 13... Ne4 {[%clk 0:03:00.5]} 14.
b4 {[%clk 0:02:57.6]} 14... Qc7 {[%clk 0:03:00.8]} 15. Nxe4 {[%clk 0:02:55.5]}
15... dxe4 {[%clk 0:03:01.7]} 16. c4 {[%clk 0:02:54.8]} 16... O-O {[%clk
0:02:59.8]} 17. Rc1 {[%clk 0:02:47.9]} 17... Rd8 {[%clk 0:02:57.6]} 18. Qe3
{[%clk 0:02:48]} 18... bxc4 {[%clk 0:02:43.7]} 19. Bxc4 {[%clk 0:02:48.9]} 19...
Qd7 {[%clk 0:02:43.3]} 20. O-O {[%clk 0:02:43.4]} 20... Bb7 {[%clk 0:02:43.8]}
21. Be2 {[%clk 0:02:36]} 21... Qd2 {[%clk 0:02:29.7]} 22. Qxd2 {[%clk
0:02:14.9]} 22... Rxd2 {[%clk 0:02:30.6]} 23. Rc7 {[%clk 0:02:14.1]} 23... Rxe2
{[%clk 0:02:16.8]} 24. Rxb7 {[%clk 0:02:13.9]} 24... Rd8 {[%clk 0:02:17]} 25.
Rf2 {[%clk 0:01:42.8]} 25... Re3 {[%clk 0:02:14.3]} 26. Rd2 {[%clk 0:01:37.6]}
26... Red3 {[%clk 0:02:07.3]} 27. Re2 {[%clk 0:01:37.4]} 27... e3 {[%clk
0:02:04.6]} 28. g3 {[%clk 0:01:32.1]} 28... Rxa3 {[%clk 0:02:03.1]} 29. Kg2
{[%clk 0:01:32.5]} 29... h5 {[%clk 0:01:52.6]} 30. Kf3 {[%clk 0:01:32.5]} 30...
Rd2 {[%clk 0:01:52.8]} 31. Rb6 {[%clk 0:01:22.5]} 31... Rxe2 {[%clk 0:01:43.8]}
32. Kxe2 {[%clk 0:01:23.4]} 32... Kh7 {[%clk 0:01:44.4]} 33. h3 {[%clk
0:01:17.7]} 33... h4 {[%clk 0:01:33.1]} 34. g4 {[%clk 0:01:17]} 34... Ra2+
{[%clk 0:01:33.7]} 35. Kxe3 {[%clk 0:01:15.8]} 35... Rh2 {[%clk 0:01:34.6]} 36.
Rxa6 {[%clk 0:01:13.2]} 36... Rxh3+ {[%clk 0:01:34.9]} 37. Ke4 {[%clk 0:01:12]}
37... Rb3 {[%clk 0:01:34.1]} 38. Ra4 {[%clk 0:01:00.3]} 38... g5 {[%clk
0:01:17]} 39. fxg5 {[%clk 0:00:55.6]} 39... Kg6 {[%clk 0:01:17]} 40. Kf4 {[%clk
0:00:54.5]} 40... h3 {[%clk 0:01:17.6]} 41. Ra8 {[%clk 0:00:47.1]} 41... h2
{[%clk 0:01:06]} 42. Rh8 {[%clk 0:00:43.4]} 42... Rxb4+ {[%clk 0:01:06.2]} 43.
Kg3 {[%clk 0:00:43.4]} 43... Kxg5 {[%clk 0:01:06.6]} 44. Rh5+ {[%clk 0:00:42.3]}
44... Kg6 {[%clk 0:01:06.8]} 45. Rxh2 {[%clk 0:00:42.6]} 45... Re4 {[%clk
0:00:55.5]} 46. Rh5 {[%clk 0:00:41.3]} 46... Re1 {[%clk 0:00:55.8]} 47. Kf4
{[%clk 0:00:39.4]} 47... Rf1+ {[%clk 0:00:56.3]} 48. Kg3 {[%clk 0:00:39.3]}
48... Kg7 {[%clk 0:00:51.9]} 49. Rg5+ {[%clk 0:00:38.8]} 49... Kf8 {[%clk
0:00:52]} 50. Rh5 {[%clk 0:00:39.7]} 50... Ke7 {[%clk 0:00:51.7]} 51. Kg2 {[%clk
0:00:33.1]} 51... Ra1 {[%clk 0:00:48.9]} 52. Rh7 {[%clk 0:00:30.8]} 52... Ra3
{[%clk 0:00:39.2]} 53. Kf2 {[%clk 0:00:28.7]} 53... Kf8 {[%clk 0:00:36.6]} 54.
Rh8+ {[%clk 0:00:27]} 54... Kg7 {[%clk 0:00:37.1]} 55. Rh5 {[%clk 0:00:27.8]}
55... Kg6 {[%clk 0:00:37.7]} 56. Kg2 {[%clk 0:00:26.8]} 56... Rd3 {[%clk
0:00:35.4]} 57. Kf2 {[%clk 0:00:27.2]} 57... Rc3 {[%clk 0:00:35.7]} 58. Kg2
{[%clk 0:00:27.6]} 58... Kg7 {[%clk 0:00:36]} 59. Kf2 {[%clk 0:00:27.9]} 59...
Kf8 {[%clk 0:00:36.6]} 60. Kg2 {[%clk 0:00:25.4]} 60... Ke8 {[%clk 0:00:36.5]}
61. Rh7 {[%clk 0:00:22.6]} 61... Re3 {[%clk 0:00:36.5]} 62. Rh5 {[%clk
0:00:22.2]} 62... Kd7 {[%clk 0:00:36.6]} 63. Kf2 {[%clk 0:00:22.9]} 63... Re4
{[%clk 0:00:37.2]} 64. Kf3 {[%clk 0:00:22.7]} 64... Re1 {[%clk 0:00:37.6]} 65.
Rh7 {[%clk 0:00:22.3]} 65... Kc6 {[%clk 0:00:38.2]} 66. Kf4 {[%clk 0:00:21]}
66... Kd5 {[%clk 0:00:34.5]} 67. Rh5 {[%clk 0:00:13.5]} 67... Kd4 {[%clk
0:00:21.1]} 68. Rh7 {[%clk 0:00:05.8]} 68... Rf1+ {[%clk 0:00:21.1]} 69. Kg3
{[%clk 0:00:03.2]} 69... Kxe5 {[%clk 0:00:22]} 70. Rh5+ {[%clk 0:00:02.8]} 70...
Kf6 {[%clk 0:00:21.3]} 71. Rh8 {[%clk 0:00:03.6]} 71... Rb1 {[%clk 0:00:20.2]}
72. Rd8 {[%clk 0:00:03.8]} 72... Kg5 {[%clk 0:00:19]} 73. Ra8 {[%clk 0:00:04.7]}
73... Rb3+ {[%clk 0:00:18.8]} 74. Kg2 {[%clk 0:00:04.9]} 74... Kxg4 {[%clk
0:00:19.7]} 75. Ra4+ {[%clk 0:00:04.5]} 75... Kf5 {[%clk 0:00:20.2]} 0-1

[Event "Late-Titled-Tuesday-Blitz-January-16-2024"]
[Site "Chess.com"]
[Date "2024.01.16"]
[Round "9"]
[White "Rgoltsman"]
[Black "santosalberto1987"]
[Result "0-1"]
[WhiteElo "2242"]
[BlackElo "2499"]
[TimeControl "180+1"]
[EndTime "15:47:41 PST"]
[Termination "santosalberto1987 won by checkmate"]

1. e4 {[%clk 0:02:54.5]} 1... e6 {[%clk 0:02:59.6]} 2. d4 {[%clk 0:02:53.9]}
2... d5 {[%clk 0:03:00.2]} 3. Bd3 {[%clk 0:02:54.2]} 3... dxe4 {[%clk 0:03:00]}
4. Bxe4 {[%clk 0:02:55.1]} 4... Nf6 {[%clk 0:03:00.6]} 5. Bf3 {[%clk 0:02:55.4]}
5... Bd6 {[%clk 0:03:01.2]} 6. Ne2 {[%clk 0:02:55.4]} 6... O-O {[%clk
0:03:01.7]} 7. O-O {[%clk 0:02:55.6]} 7... e5 {[%clk 0:03:02.2]} 8. dxe5 {[%clk
0:02:55.2]} 8... Bxe5 {[%clk 0:03:03.1]} 9. Nbc3 {[%clk 0:02:50.5]} 9... c6
{[%clk 0:03:02.7]} 10. Bg5 {[%clk 0:02:50.1]} 10... Bf5 {[%clk 0:02:59.4]} 11.
Qxd8 {[%clk 0:02:27.1]} 11... Rxd8 {[%clk 0:02:58.7]} 12. Ne4 {[%clk 0:02:27.5]}
12... Na6 {[%clk 0:02:49.5]} 13. N2g3 {[%clk 0:02:16.5]} 13... Bg6 {[%clk
0:02:12.5]} 14. c3 {[%clk 0:02:05.6]} 14... Nxe4 {[%clk 0:01:56.1]} 15. Nxe4
{[%clk 0:02:01.4]} 15... f6 {[%clk 0:01:52]} 16. Be3 {[%clk 0:01:57.4]} 16...
Bc7 {[%clk 0:01:40.2]} 17. Rad1 {[%clk 0:01:50.3]} 17... Bb6 {[%clk 0:01:40.2]}
18. Bf4 {[%clk 0:01:43.3]} 18... Nc5 {[%clk 0:01:34.1]} 19. Nd6 {[%clk
0:01:10.1]} 19... Rd7 {[%clk 0:01:21.6]} 20. b4 {[%clk 0:01:02.8]} 20... Nd3
{[%clk 0:01:21.1]} 21. Bg3 {[%clk 0:00:54.3]} 21... Rad8 {[%clk 0:01:20.7]} 22.
Nc4 {[%clk 0:00:49.1]} 22... Bc7 {[%clk 0:00:57.8]} 23. Bg4 {[%clk 0:00:41.2]}
23... Re7 {[%clk 0:00:51.2]} 24. Bxc7 {[%clk 0:00:25.6]} 24... Rxc7 {[%clk
0:00:50.9]} 25. h4 {[%clk 0:00:19.2]} 25... h5 {[%clk 0:00:45.8]} 26. Be2 {[%clk
0:00:16.7]} 26... Rcd7 {[%clk 0:00:44.5]} 27. Rd2 {[%clk 0:00:17.1]} 27... Nf4
{[%clk 0:00:42.4]} 28. Rb2 {[%clk 0:00:13.5]} 28... Nxe2+ {[%clk 0:00:41.7]} 29.
Rxe2 {[%clk 0:00:14.4]} 29... Bd3 {[%clk 0:00:41.9]} 30. Rfe1 {[%clk 0:00:12.4]}
30... Bxc4 {[%clk 0:00:40.5]} 31. Re7 {[%clk 0:00:12.2]} 31... Bxa2 {[%clk
0:00:36.5]} 32. Rxd7 {[%clk 0:00:11.9]} 32... Rxd7 {[%clk 0:00:36.8]} 33. Ra1
{[%clk 0:00:12.8]} 33... Bc4 {[%clk 0:00:34.5]} 34. Rxa7 {[%clk 0:00:13.7]}
34... Kf7 {[%clk 0:00:33.6]} 35. Ra8 {[%clk 0:00:13.7]} 35... Be6 {[%clk
0:00:33.1]} 36. Rb8 {[%clk 0:00:13]} 36... b5 {[%clk 0:00:32.8]} 37. Rc8 {[%clk
0:00:12.1]} 37... Bd5 {[%clk 0:00:33]} 38. Rb8 {[%clk 0:00:10.9]} 38... Re7
{[%clk 0:00:32.9]} 39. f3 {[%clk 0:00:10.6]} 39... Re3 {[%clk 0:00:31.8]} 40.
Rd8 {[%clk 0:00:10.1]} 40... Rxc3 {[%clk 0:00:31.5]} 41. Rd7+ {[%clk 0:00:10.7]}
41... Kg6 {[%clk 0:00:31.7]} 42. Kf2 {[%clk 0:00:10.2]} 42... Rb3 {[%clk
0:00:31.6]} 43. g4 {[%clk 0:00:10.8]} 43... Rxf3+ {[%clk 0:00:31.4]} 44. Ke2
{[%clk 0:00:10.6]} 44... hxg4 {[%clk 0:00:31.4]} 45. Rd6 {[%clk 0:00:10.4]}
45... Rb3 {[%clk 0:00:30.3]} 46. Rd8 {[%clk 0:00:10.5]} 46... Rxb4 {[%clk
0:00:30.3]} 47. Rh8 {[%clk 0:00:11.4]} 47... Rb3 {[%clk 0:00:29.2]} 48. h5+
{[%clk 0:00:12.3]} 48... Kf7 {[%clk 0:00:29.4]} 49. Kd2 {[%clk 0:00:12.8]} 49...
Rh3 {[%clk 0:00:29.4]} 50. Rh7 {[%clk 0:00:12.6]} 50... g3 {[%clk 0:00:28.8]}
51. Ke2 {[%clk 0:00:12.8]} 51... g2 {[%clk 0:00:29]} 52. Kf2 {[%clk 0:00:13.3]}
52... Rh1 {[%clk 0:00:29.3]} 53. h6 {[%clk 0:00:13]} 53... g1=Q+ {[%clk
0:00:29.5]} 54. Ke2 {[%clk 0:00:13.5]} 54... Rh2+ {[%clk 0:00:27.5]} 55. Kd3
{[%clk 0:00:13.6]} 55... Bc4+ {[%clk 0:00:27.4]} 56. Ke4 {[%clk 0:00:13.5]}
56... Rh5 {[%clk 0:00:26.8]} 57. Rxg7+ {[%clk 0:00:12.9]} 57... Qxg7 {[%clk
0:00:27.4]} 58. hxg7 {[%clk 0:00:13.8]} 58... Kxg7 {[%clk 0:00:27.1]} 59. Kd4
{[%clk 0:00:14.7]} 59... Rd5+ {[%clk 0:00:26.8]} 60. Ke4 {[%clk 0:00:15.6]}
60... b4 {[%clk 0:00:26.6]} 61. Ke3 {[%clk 0:00:16.1]} 61... b3 {[%clk 0:00:27]}
62. Ke4 {[%clk 0:00:17]} 62... b2 {[%clk 0:00:27.2]} 63. Ke3 {[%clk 0:00:17.9]}
63... b1=Q {[%clk 0:00:27.1]} 64. Kf4 {[%clk 0:00:15.8]} 64... Ba6 {[%clk
0:00:26.4]} 65. Ke3 {[%clk 0:00:16.7]} 65... c5 {[%clk 0:00:26.5]} 66. Kf4
{[%clk 0:00:17.6]} 66... c4 {[%clk 0:00:26.8]} 67. Ke3 {[%clk 0:00:18.5]} 67...
c3 {[%clk 0:00:27.1]} 68. Kf4 {[%clk 0:00:19.4]} 68... c2 {[%clk 0:00:27.3]} 69.
Ke3 {[%clk 0:00:20.3]} 69... c1=Q+ {[%clk 0:00:27.4]} 70. Kf3 {[%clk 0:00:20.9]}
70... Qf1+ {[%clk 0:00:27.2]} 71. Kg4 {[%clk 0:00:20.3]} 71... f5+ {[%clk
0:00:26.4]} 72. Kg5 {[%clk 0:00:20.4]} 72... f4+ {[%clk 0:00:25.8]} 73. Kg4
{[%clk 0:00:21.3]} 73... f3 {[%clk 0:00:25]} 74. Kg3 {[%clk 0:00:22.2]} 74... f2
{[%clk 0:00:24]} 75. Kf4 {[%clk 0:00:23.1]} 75... Qfe1 {[%clk 0:00:21.1]} 76.
Kg4 {[%clk 0:00:21.6]} 76... Bc8+ {[%clk 0:00:18.1]} 77. Kg3 {[%clk 0:00:08.3]}
77... f1=Q+ {[%clk 0:00:17.2]} 78. Kh2 {[%clk 0:00:09.2]} 78... Rd2# {[%clk
0:00:15.5]} 0-1

[Event "Late-Titled-Tuesday-Blitz-January-16-2024"]
[Site "Chess.com"]
[Date "2024.01.16"]
[Round "9"]
[White "argentum049"]
[Black "Zampronha1971"]
[Result "1/2-1/2"]
[WhiteElo "2477"]
[BlackElo "2324"]
[TimeControl "180+1"]
[EndTime "15:47:47 PST"]
[Termination "Game drawn - insufficient material"]

1. e4 {[%clk 0:02:55.7]} 1... c5 {[%clk 0:02:59.7]} 2. Nf3 {[%clk 0:02:55.6]}
2... e6 {[%clk 0:03:00.1]} 3. b3 {[%clk 0:02:55.5]} 3... d5 {[%clk 0:02:58.9]}
4. Bb5+ {[%clk 0:02:54.3]} 4... Nc6 {[%clk 0:02:56.1]} 5. Bb2 {[%clk 0:02:53.6]}
5... Nf6 {[%clk 0:02:49.2]} 6. exd5 {[%clk 0:02:52.6]} 6... exd5 {[%clk
0:02:47.3]} 7. O-O {[%clk 0:02:53.5]} 7... Be7 {[%clk 0:02:47.2]} 8. d4 {[%clk
0:02:53.4]} 8... O-O {[%clk 0:02:44.8]} 9. dxc5 {[%clk 0:02:51.6]} 9... Bxc5
{[%clk 0:02:44]} 10. h3 {[%clk 0:02:51.7]} 10... Be6 {[%clk 0:02:35]} 11. Nc3
{[%clk 0:02:50.5]} 11... Rc8 {[%clk 0:02:27]} 12. Bxc6 {[%clk 0:02:43.1]} 12...
bxc6 {[%clk 0:02:23.4]} 13. Na4 {[%clk 0:02:39.2]} 13... Be7 {[%clk 0:02:24]}
14. Re1 {[%clk 0:02:36.5]} 14... Ne4 {[%clk 0:02:22.9]} 15. Nd2 {[%clk
0:02:34.9]} 15... Nxd2 {[%clk 0:02:15.9]} 16. Qxd2 {[%clk 0:02:35.8]} 16... c5
{[%clk 0:02:05.6]} 17. Rad1 {[%clk 0:02:24.6]} 17... d4 {[%clk 0:02:04.9]} 18.
c3 {[%clk 0:02:24.2]} 18... Bf6 {[%clk 0:01:48.7]} 19. cxd4 {[%clk 0:02:23.7]}
19... cxd4 {[%clk 0:01:49.6]} 20. Bxd4 {[%clk 0:02:23.8]} 20... Bxd4 {[%clk
0:01:49.1]} 21. Qxd4 {[%clk 0:02:24.4]} 21... Qxd4 {[%clk 0:01:49.5]} 22. Rxd4
{[%clk 0:02:25.1]} 22... Rc2 {[%clk 0:01:49.3]} 23. Ra1 {[%clk 0:02:20.9]} 23...
Rfc8 {[%clk 0:01:42.3]} 24. Kf1 {[%clk 0:02:13.3]} 24... g6 {[%clk 0:01:40.6]}
25. Ke1 {[%clk 0:02:06]} 25... Kg7 {[%clk 0:01:34.2]} 26. Rd2 {[%clk 0:02:05]}
26... Bf5 {[%clk 0:01:29.1]} 27. Rad1 {[%clk 0:02:00.2]} 27... Re8+ {[%clk
0:01:23.5]} 28. Kf1 {[%clk 0:02:00.1]} 28... Rxd2 {[%clk 0:01:19.9]} 29. Rxd2
{[%clk 0:02:01]} 29... Rc8 {[%clk 0:01:20.2]} 30. Ke2 {[%clk 0:01:54.4]} 30...
Rc1 {[%clk 0:01:18.6]} 31. f3 {[%clk 0:01:48.1]} 31... Be6 {[%clk 0:01:12.6]}
32. Nb2 {[%clk 0:01:46.4]} 32... Rg1 {[%clk 0:01:07.1]} 33. Kf2 {[%clk
0:01:45.9]} 33... Ra1 {[%clk 0:01:07.4]} 34. Nd3 {[%clk 0:01:46.3]} 34... Kf6
{[%clk 0:01:03.8]} 35. Nc5 {[%clk 0:01:45.8]} 35... Bc8 {[%clk 0:01:00.4]} 36.
g4 {[%clk 0:01:43.4]} 36... h5 {[%clk 0:01:00.2]} 37. Rd8 {[%clk 0:01:40.8]}
37... Rxa2+ {[%clk 0:00:57.2]} 38. Kg3 {[%clk 0:01:40.6]} 38... Be6 {[%clk
0:00:57.2]} 39. f4 {[%clk 0:01:32.4]} 39... hxg4 {[%clk 0:00:56.2]} 40. hxg4
{[%clk 0:01:32.6]} 40... Ra3 {[%clk 0:00:54.3]} 41. Rb8 {[%clk 0:01:26.6]} 41...
a5 {[%clk 0:00:54.5]} 42. Kh4 {[%clk 0:00:56.8]} 42... Ra1 {[%clk 0:00:44.3]}
43. g5+ {[%clk 0:00:47.1]} 43... Kf5 {[%clk 0:00:39.9]} 44. Nxe6 {[%clk
0:00:45.8]} 44... Kxe6 {[%clk 0:00:38.2]} 45. Rb6+ {[%clk 0:00:45.2]} 45... Ke7
{[%clk 0:00:37]} 46. Kg4 {[%clk 0:00:43.5]} 46... Rb1 {[%clk 0:00:36]} 47. Rb5
{[%clk 0:00:42.2]} 47... Kf8 {[%clk 0:00:25.7]} 48. Kf3 {[%clk 0:00:41.9]} 48...
Kg7 {[%clk 0:00:23.7]} 49. Ke4 {[%clk 0:00:42.2]} 49... Ra1 {[%clk 0:00:15.7]}
50. Kd4 {[%clk 0:00:39.2]} 50... a4 {[%clk 0:00:16.1]} 51. b4 {[%clk 0:00:39.6]}
51... a3 {[%clk 0:00:16.1]} 52. Kc3 {[%clk 0:00:39.7]} 52... a2 {[%clk
0:00:13.3]} 53. Kb2 {[%clk 0:00:39.7]} 53... Rf1 {[%clk 0:00:13.8]} 54. Kxa2
{[%clk 0:00:39.9]} 54... Rxf4 {[%clk 0:00:14.1]} 55. Kb3 {[%clk 0:00:40.2]}
55... f6 {[%clk 0:00:11.2]} 56. Rb7+ {[%clk 0:00:38.7]} 56... Kg8 {[%clk
0:00:11.5]} 57. gxf6 {[%clk 0:00:39.2]} 57... Rxf6 {[%clk 0:00:11.3]} 58. b5
{[%clk 0:00:39.7]} 58... g5 {[%clk 0:00:11.5]} 59. Kc4 {[%clk 0:00:34.6]} 59...
g4 {[%clk 0:00:11.9]} 60. Rd7 {[%clk 0:00:18.5]} 60... g3 {[%clk 0:00:09.3]} 61.
Rd2 {[%clk 0:00:13.7]} 61... Rf2 {[%clk 0:00:08.1]} 62. Rd3 {[%clk 0:00:13.9]}
62... g2 {[%clk 0:00:08.2]} 63. Rg3+ {[%clk 0:00:12.8]} 63... Kf7 {[%clk
0:00:08.7]} 64. b6 {[%clk 0:00:09.5]} 64... Kf6 {[%clk 0:00:06.6]} 65. b7 {[%clk
0:00:08.8]} 65... Rb2 {[%clk 0:00:06.2]} 66. Kc5 {[%clk 0:00:03.9]} 66... Rxb7
{[%clk 0:00:05.3]} 67. Rxg2 {[%clk 0:00:02.8]} 67... Rg7 {[%clk 0:00:05.8]} 68.
Rxg7 {[%clk 0:00:02.5]} 68... Kxg7 {[%clk 0:00:05.6]} 1/2-1/2